Workbook

Sheet Laporan

Sheet Database
A1: Company | B1: Project Name | C1: Customer No | D1: Client Name | E1: Penagihan/Pembayaran | F1: Deskripsi | G1: Invoice No | H1: Date | I1: Month | J1: Year | K1: Due Date | L1: Days Outstanding | M1: Status | N1: Principal USD | O1: Vat USD | P1: Gross USD
A2: 12 | B2: Jaksel | C2: 600190 | D2: PT CDE | E2: Penagihan | F2: Listrik | G2: 17011043 | H2: 2017-01-24 | I2: =IFERROR(VLOOKUP(MONTH(H2),db_customer!$A$18:$B$29,2,FALSE),"") -> January | J2: =IF(H2="","",YEAR(H2)) -> 2017 | K2: =H2+30 -> 2017-02-23 | N2: 677953.8124 | O2: =N2*10% -> 67795.38124 | P2: =SUM(N2:O2) -> 745749.1937
A3: 12 | B3: Jaksel | C3: 600190 | D3: PT CDE | E3: Penagihan | F3: Listrik | G3: 17011062 | H3: 2017-02-14 | I3: =IFERROR(VLOOKUP(MONTH(H3),db_customer!$A$18:$B$29,2,FALSE),"") -> February | J3: 2017 | K3: 2017-03-16 | N3: 944444.2148 | O3: =N3*10% -> 94444.42148 | P3: =SUM(N3:O3) -> 1038888.636
A4: 12 | B4: Jaksel | C4: 600190 | D4: PT CDE | E4: Penagihan | F4: Listrik | G4: 17011093 | H4: 2017-02-20 | I4: =IFERROR(VLOOKUP(MONTH(H4),db_customer!$A$18:$B$29,2,FALSE),"") -> February | J4: 2017 | K4: 2017-03-22 | N4: 1589760.519 | O4: 158976.0519 | P4: 1748736.571
A5: 12 | B5: Jaksel | C5: 600190 | D5: PT CDE | E5: Penagihan | F5: Listrik | G5: 17011118 | H5: 2017-03-08 | I5: =IFERROR(VLOOKUP(MONTH(H5),db_customer!$A$18:$B$29,2,FALSE),"") -> March | J5: 2017 | K5: 2017-04-07 | N5: 1784973.361 | O5: 178497.3361 | P5: 1963470.698
A6: 12 | B6: Jaksel | C6: 600190 | D6: PT CDE | E6: Penagihan | F6: Listrik | G6: 17011151 | H6: 2017-03-22 | I6: =IFERROR(VLOOKUP(MONTH(H6),db_customer!$A$18:$B$29,2,FALSE),"") -> March | J6: 2017 | K6: 2017-04-21 | N6: 632486.6733 | O6: 63248.66733 | P6: 695735.3406
A7: 12 | B7: Jaksel | C7: 600190 | D7: PT CDE | E7: Penagihan | F7: Listrik | G7: 17011202 | H7: 2017-04-26 | I7: =IFERROR(VLOOKUP(MONTH(H7),db_customer!$A$18:$B$29,2,FALSE),"") -> April | J7: 2017 | K7: 2017-05-26 | N7: 1412748.101 | O7: 141274.8101 | P7: 1554022.911
A8: 12 | B8: Jaksel | C8: 600190 | D8: PT CDE | E8: Penagihan | F8: Listrik | G8: 17011221 | H8: 2017-05-17 | I8: =IFERROR(VLOOKUP(MONTH(H8),db_customer!$A$18:$B$29,2,FALSE),"") -> May | J8: 2017 | K8: 2017-06-16 | N8: 482393.1385 | O8: 48239.31385 | P8: 530632.4523
A9: 12 | B9: Jaksel | C9: 600190 | D9: PT CDE | E9: Penagihan | F9: Listrik | G9: 17011222 | H9: 2017-05-17 | I9: =IFERROR(VLOOKUP(MONTH(H9),db_customer!$A$18:$B$29,2,FALSE),"") -> May | J9: 2017 | K9: 2017-06-16 | N9: 1973387.039 | O9: 197338.7039 | P9: 2170725.743
A10: 12 | B10: Jaksel | C10: 600190 | D10: PT CDE | E10: Penagihan | F10: Listrik | G10: 17011240 | H10: 2017-05-26 | I10: =IFERROR(VLOOKUP(MONTH(H10),db_customer!$A$18:$B$29,2,FALSE),"") -> May | J10: 2017 | K10: 2017-06-25 | N10: 1319078.959 | O10: 131907.8959 | P10: 1450986.854
A11: 12 | B11: Jaksel | C11: 600190 | D11: PT CDE | E11: Penagihan | F11: Listrik | G11: 17011246 | H11: 2017-06-09 | I11: =IFERROR(VLOOKUP(MONTH(H11),db_customer!$A$18:$B$29,2,FALSE),"") -> June | J11: 2017 | K11: 2017-07-09 | N11: 1213339.29 | O11: 121333.929 | P11: 1334673.219
A12: 12 | B12: Jaksel | C12: 600190 | D12: PT CDE | E12: Penagihan | F12: Gas | G12: 17011292 | H12: 2017-06-27 | I12: =IFERROR(VLOOKUP(MONTH(H12),db_customer!$A$18:$B$29,2,FALSE),"") -> June | J12: 2017 | K12: 2017-07-27 | N12: 1394665.82 | O12: 139466.582 | P12: 1534132.402
A13: 12 | B13: Jaksel | C13: 600190 | D13: PT CDE | E13: Penagihan | F13: Gas | G13: 17011293 | H13: 2017-07-11 | I13: =IFERROR(VLOOKUP(MONTH(H13),db_customer!$A$18:$B$29,2,FALSE),"") -> July | J13: 2017 | K13: 2017-08-10 | N13: 435767.84 | O13: 43576.784 | P13: 479344.624
A14: 12 | B14: Jaksel | C14: 600190 | D14: PT CDE | E14: Penagihan | F14: Gas | G14: 17011325 | H14: 2017-07-26 | I14: =IFERROR(VLOOKUP(MONTH(H14),db_customer!$A$18:$B$29,2,FALSE),"") -> July | J14: 2017 | K14: 2017-08-25 | N14: 598364.42 | O14: 59836.442 | P14: 658200.862
A15: 12 | B15: Jaksel | C15: 600190 | D15: PT CDE | E15: Penagihan | F15: Gas | G15: 17011344 | H15: 2017-08-08 | I15: =IFERROR(VLOOKUP(MONTH(H15),db_customer!$A$18:$B$29,2,FALSE),"") -> August | J15: 2017 | K15: 2017-09-07 | N15: 1246470.627 | O15: 124647.0627 | P15: 1371117.69
A16: 12 | B16: Jaksel | C16: 600190 | D16: PT CDE | E16: Penagihan | F16: Gas | G16: 17011392 | H16: 2017-08-23 | I16: =IFERROR(VLOOKUP(MONTH(H16),db_customer!$A$18:$B$29,2,FALSE),"") -> August | J16: 2017 | K16: 2017-09-22 | N16: 1136861.242 | O16: 113686.1242 | P16: 1250547.367
A17: 12 | B17: Jaksel | C17: 600190 | D17: PT CDE | E17: Penagihan | F17: Air | G17: 17011430 | H17: 2017-09-25 | I17: =IFERROR(VLOOKUP(MONTH(H17),db_customer!$A$18:$B$29,2,FALSE),"") -> September | J17: 2017 | K17: 2017-10-25 | N17: 1239898 | O17: 123989.8 | P17: 1363887.8
A18: 12 | B18: Jaksel | C18: 600190 | D18: PT CDE | E18: Penagihan | F18: Air | G18: 17011431 | H18: 2017-09-25 | I18: =IFERROR(VLOOKUP(MONTH(H18),db_customer!$A$18:$B$29,2,FALSE),"") -> September | J18: 2017 | K18: 2017-10-25 | N18: 1437579 | O18: 143757.9 | P18: 1581336.9
A19: 12 | B19: Jaksel | C19: 600190 | D19: PT CDE | E19: Penagihan | F19: Air | G19: 17011468 | H19: 2017-10-17 | I19: =IFERROR(VLOOKUP(MONTH(H19),db_customer!$A$18:$B$29,2,FALSE),"") -> October | J19: 2017 | K19: 2017-11-16 | N19: 2424151.89 | O19: 242415.189 | P19: 2666567.079
A20: 12 | B20: Jaksel | C20: 600190 | D20: PT CDE | E20: Penagihan | F20: Air | G20: 17011476 | H20: 2017-10-25 | I20: =IFERROR(VLOOKUP(MONTH(H20),db_customer!$A$18:$B$29,2,FALSE),"") -> October | J20: 2017 | K20: 2017-11-24 | N20: 2836613.903 | O20: 283661.3903 | P20: 3120275.294
A21: 12 | B21: Jaksel | C21: 600190 | D21: PT CDE | E21: Penagihan | F21: Air | G21: 17011514 | H21: 2017-11-17 | I21: =IFERROR(VLOOKUP(MONTH(H21),db_customer!$A$18:$B$29,2,FALSE),"") -> November | J21: 2017 | K21: 2017-12-17 | N21: 2757355.22 | O21: 275735.522 | P21: 3033090.742
A22: 12 | B22: Jaksel | C22: 600190 | D22: PT CDE | E22: Penagihan | F22: Air | G22: 17011521 | H22: 2017-11-28 | I22: =IFERROR(VLOOKUP(MONTH(H22),db_customer!$A$18:$B$29,2,FALSE),"") -> November | J22: 2017 | K22: 2017-12-28 | N22: 3037439.81 | P22: 3037439.81
A23: 12 | B23: Tanggerang | C23: 600190 | D23: Pt OPQ | E23: Pembayaran | G23: 16010698 | H23: 2017-03-13 | I23: =IFERROR(VLOOKUP(MONTH(H23),db_customer!$A$18:$B$29,2,FALSE),"") -> March | J23: 2017 | O23: =N23*10% -> 0 | P23: =SUM(N23:O23) -> 0
A24: 12 | B24: Jaksel | C24: 600190 | D24: PT CDE | E24: Pembayaran | G24: 17011043 | H24: 2017-03-13 | I24: =IFERROR(VLOOKUP(MONTH(H24),db_customer!$A$18:$B$29,2,FALSE),"") -> March | J24: 2017 | N24: -677953.81 | O24: -67795.381 | P24: -745749.191
A25: 12 | B25: Jaksel | C25: 600190 | D25: PT CDE | E25: Pembayaran | G25: 17011062 | H25: 2017-03-13 | I25: =IFERROR(VLOOKUP(MONTH(H25),db_customer!$A$18:$B$29,2,FALSE),"") -> March | J25: 2017 | N25: -66145.45 | O25: -6614.545 | P25: -72759.995
A26: 12 | B26: Jaksel | C26: 600190 | D26: PT CDE | E26: Pembayaran | G26: 17011062 | H26: 2017-03-20 | I26: =IFERROR(VLOOKUP(MONTH(H26),db_customer!$A$18:$B$29,2,FALSE),"") -> March | J26: 2017 | N26: -878298.76 | O26: -87829.876 | P26: -966128.636
A27: 12 | B27: Jaksel | C27: 600190 | D27: PT CDE | E27: Pembayaran | G27: 17011093 | H27: 2017-03-20 | I27: =IFERROR(VLOOKUP(MONTH(H27),db_customer!$A$18:$B$29,2,FALSE),"") -> March | J27: 2017 | N27: -82952.31 | O27: -8295.231 | P27: -91247.541
A28: 12 | B28: Jaksel | C28: 600190 | D28: PT CDE | E28: Pembayaran | G28: 17011093 | H28: 2017-03-30 | I28: =IFERROR(VLOOKUP(MONTH(H28),db_customer!$A$18:$B$29,2,FALSE),"") -> March | J28: 2017 | N28: -735527.19 | O28: -73552.719 | P28: -809079.909
A29: 12 | B29: Jaksel | C29: 600190 | D29: PT CDE | E29: Pembayaran | G29: 17011093 | H29: 2017-04-26 | I29: =IFERROR(VLOOKUP(MONTH(H29),db_customer!$A$18:$B$29,2,FALSE),"") -> April | J29: 2017 | N29: -684956.97 | O29: -68495.697 | P29: -753452.667
A30: 12 | B30: Jaksel | C30: 600190 | D30: PT CDE | E30: Pembayaran | G30: 17011093 | H30: 2017-05-02 | I30: =IFERROR(VLOOKUP(MONTH(H30),db_customer!$A$18:$B$29,2,FALSE),"") -> May | J30: 2017 | N30: -37766.94 | O30: -3776.694 | P30: -41543.634
A31: 12 | B31: Jaksel | C31: 600190 | D31: PT CDE | E31: Pembayaran | G31: 17011093 | H31: 2017-05-12 | I31: =IFERROR(VLOOKUP(MONTH(H31),db_customer!$A$18:$B$29,2,FALSE),"") -> May | J31: 2017 | N31: -48557.1 | O31: -4855.71 | P31: -53412.81
A32: 12 | B32: Jaksel | C32: 600190 | D32: PT CDE | E32: Pembayaran | G32: 17011118 | H32: 2017-05-12 | I32: =IFERROR(VLOOKUP(MONTH(H32),db_customer!$A$18:$B$29,2,FALSE),"") -> May | J32: 2017 | N32: -323613.63 | O32: -32361.363 | P32: -355974.993
A33: 12 | B33: Jaksel | C33: 600190 | D33: PT CDE | E33: Pembayaran | G33: 17011118 | H33: 2017-05-19 | I33: =IFERROR(VLOOKUP(MONTH(H33),db_customer!$A$18:$B$29,2,FALSE),"") -> May | J33: 2017 | N33: -1144995.45 | O33: -114499.545 | P33: -1259494.995
A34: 12 | B34: Jaksel | C34: 600190 | D34: PT CDE | E34: Pembayaran | G34: 17011118 | H34: 2017-05-30 | I34: =IFERROR(VLOOKUP(MONTH(H34),db_customer!$A$18:$B$29,2,FALSE),"") -> May | J34: =IF(H34="","",YEAR(H34)) -> 2017 | N34: -316364.28 | O34: -31636.428 | P34: -348000.708
A35: 12 | B35: Jaksel | C35: 600190 | D35: PT CDE | E35: Pembayaran | G35: 17011151 | H35: 2017-05-30 | I35: =IFERROR(VLOOKUP(MONTH(H35),db_customer!$A$18:$B$29,2,FALSE),"") -> May | J35: 2017 | N35: -632486.67 | O35: -63248.667 | P35: -695735.337
A36: 12 | B36: Jaksel | C36: 600190 | D36: PT CDE | E36: Pembayaran | G36: 17011202 | H36: 2017-05-30 | I36: =IFERROR(VLOOKUP(MONTH(H36),db_customer!$A$18:$B$29,2,FALSE),"") -> May | J36: 2017 | N36: -692310.31 | O36: -69231.031 | P36: -761541.341
A37: 12 | B37: Jaksel | C37: 600190 | D37: PT CDE | E37: Pembayaran | G37: 17011202 | H37: 2017-06-06 | I37: =IFERROR(VLOOKUP(MONTH(H37),db_customer!$A$18:$B$29,2,FALSE),"") -> June | J37: 2017 | N37: -390227.86 | O37: -39022.786 | P37: -429250.646
A38: 12 | B38: Jaksel | C38: 600190 | D38: PT CDE | E38: Pembayaran | G38: 17011202 | H38: 2017-07-14 | I38: =IFERROR(VLOOKUP(MONTH(H38),db_customer!$A$18:$B$29,2,FALSE),"") -> July | J38: 2017 | N38: -330209.92 | O38: -33020.992 | P38: -363230.912
A39: 12 | B39: Jaksel | C39: 600190 | D39: PT CDE | E39: Pembayaran | G39: 17011221 | H39: 2017-07-14 | I39: =IFERROR(VLOOKUP(MONTH(H39),db_customer!$A$18:$B$29,2,FALSE),"") -> July | J39: 2017 | N39: -3169.58 | O39: -316.958 | P39: -3486.538
A40: 12 | B40: Jaksel | C40: 600190 | D40: PT CDE | E40: Pembayaran | G40: 17011221 | H40: 2017-07-24 | I40: =IFERROR(VLOOKUP(MONTH(H40),db_customer!$A$18:$B$29,2,FALSE),"") -> July | J40: 2017 | N40: -479223.55 | O40: -47922.355 | P40: -527145.905
A41: 12 | B41: Jaksel | C41: 600190 | D41: PT CDE | E41: Pembayaran | G41: 17011222 | H41: 2017-07-24 | I41: =IFERROR(VLOOKUP(MONTH(H41),db_customer!$A$18:$B$29,2,FALSE),"") -> July | J41: 2017 | N41: -683813.78 | O41: -68381.378 | P41: -752195.158
A42: 12 | B42: Jaksel | C42: 600190 | D42: PT CDE | E42: Pembayaran | G42: 17011222 | H42: 2017-08-03 | I42: =IFERROR(VLOOKUP(MONTH(H42),db_customer!$A$18:$B$29,2,FALSE),"") -> August | J42: 2017 | N42: -1289573.26 | O42: -128957.326 | P42: -1418530.586
A43: 12 | B43: Jaksel | C43: 600190 | D43: PT CDE | E43: Pembayaran | G43: 17011246 | H43: 2017-08-03 | I43: =IFERROR(VLOOKUP(MONTH(H43),db_customer!$A$18:$B$29,2,FALSE),"") -> August | J43: 2017 | N43: -37000.2 | O43: -3700.02 | P43: -40700.22
A44: 12 | B44: Jaksel | C44: 600190 | D44: PT CDE | E44: Pembayaran | G44: 17011246 | H44: 2017-08-18 | I44: =IFERROR(VLOOKUP(MONTH(H44),db_customer!$A$18:$B$29,2,FALSE),"") -> August | J44: 2017 | N44: -108585.22 | O44: -10858.522 | P44: -119443.742
A45: 12 | B45: Jaksel | C45: 600190 | D45: PT CDE | E45: Pembayaran | G45: 17011246 | H45: 2017-09-06 | I45: =IFERROR(VLOOKUP(MONTH(H45),db_customer!$A$18:$B$29,2,FALSE),"") -> September | J45: 2017 | N45: -1067753.87 | O45: -106775.387 | P45: -1174529.257
A46: 12 | B46: Jaksel | C46: 600190 | D46: PT CDE | E46: Pembayaran | G46: 17011292 | H46: 2017-09-06 | I46: =IFERROR(VLOOKUP(MONTH(H46),db_customer!$A$18:$B$29,2,FALSE),"") -> September | J46: 2017 | N46: -363360.67 | O46: -36336.067 | P46: -399696.737
A47: 12 | B47: Jaksel | C47: 600190 | D47: PT CDE | E47: Pembayaran | G47: 17011292 | H47: 2017-09-20 | I47: =IFERROR(VLOOKUP(MONTH(H47),db_customer!$A$18:$B$29,2,FALSE),"") -> September | J47: 2017 | N47: -200698.62 | O47: -20069.862 | P47: -220768.482
A48: 12 | B48: Jaksel | C48: 600190 | D48: PT CDE | E48: Pembayaran | G48: 17011292 | H48: 2017-09-20 | I48: =IFERROR(VLOOKUP(MONTH(H48),db_customer!$A$18:$B$29,2,FALSE),"") -> September | J48: 2017 | N48: 830606.53 | O48: 83060.653 | P48: 913667.183
A49: 12 | B49: Jaksel | C49: 600190 | D49: PT CDE | E49: Pembayaran | G49: 17011293 | H49: 2017-09-20 | I49: =IFERROR(VLOOKUP(MONTH(H49),db_customer!$A$18:$B$29,2,FALSE),"") -> September | J49: 2017 | N49: -65326.81 | O49: -6532.681 | P49: -71859.491
A50: 12 | B50: Jaksel | C50: 600190 | D50: PT CDE | E50: Pembayaran | G50: 17011293 | H50: 2017-10-04 | I50: =IFERROR(VLOOKUP(MONTH(H50),db_customer!$A$18:$B$29,2,FALSE),"") -> October | J50: 2017 | N50: -370441.03 | O50: -37044.103 | P50: -407485.133
A51: 12 | B51: Jaksel | C51: 600190 | D51: PT CDE | E51: Pembayaran | G51: 17011325 | H51: 2017-10-04 | I51: =IFERROR(VLOOKUP(MONTH(H51),db_customer!$A$18:$B$29,2,FALSE),"") -> October | J51: 2017 | N51: -598364.42 | O51: -59836.442 | P51: -658200.862
A52: 12 | B52: Jaksel | C52: 600190 | D52: PT CDE | E52: Pembayaran | G52: 17011344 | H52: 2017-10-04 | I52: =IFERROR(VLOOKUP(MONTH(H52),db_customer!$A$18:$B$29,2,FALSE),"") -> October | J52: 2017 | N52: -225732.48 | O52: -22573.248 | P52: -248305.728
A53: 12 | B53: Jaksel | C53: 600190 | D53: PT CDE | E53: Pembayaran | G53: 17011344 | H53: 2017-10-20 | I53: =IFERROR(VLOOKUP(MONTH(H53),db_customer!$A$18:$B$29,2,FALSE),"") -> October | J53: 2017 | N53: -417607.25 | O53: -41760.725 | P53: -459367.975
A54: 12 | B54: Jaksel | C54: 600190 | D54: PT CDE | E54: Pembayaran | G54: 17011344 | H54: 2017-10-25 | I54: =IFERROR(VLOOKUP(MONTH(H54),db_customer!$A$18:$B$29,2,FALSE),"") -> October | J54: 2017 | N54: -603130.9 | O54: -60313.09 | P54: -663443.99
A55: 12 | B55: Jaksel | C55: 600190 | D55: PT CDE | E55: Pembayaran | G55: 17011329 | H55: 2017-10-25 | I55: =IFERROR(VLOOKUP(MONTH(H55),db_customer!$A$18:$B$29,2,FALSE),"") -> October | J55: 2017 | N55: -688108.72 | O55: -68810.872 | P55: -756919.592
A56: 12 | B56: Jaksel | C56: 600190 | D56: PT CDE | E56: Pembayaran | G56: 17011329 | H56: 2017-11-01 | I56: =IFERROR(VLOOKUP(MONTH(H56),db_customer!$A$18:$B$29,2,FALSE),"") -> November | J56: 2017 | N56: -448752.52 | O56: -44875.252 | P56: -493627.772
A57: 12 | B57: Jaksel | C57: 600190 | D57: PT CDE | E57: Pembayaran | G57: 17011430 | H57: 2017-11-10 | I57: =IFERROR(VLOOKUP(MONTH(H57),db_customer!$A$18:$B$29,2,FALSE),"") -> November | J57: 2017 | N57: -476207.81 | O57: -47620.781 | P57: -523828.591
A58: 12 | B58: Jaksel | C58: 600190 | D58: PT CDE | E58: Pembayaran | G58: 17011430 | H58: 2017-11-10 | I58: =IFERROR(VLOOKUP(MONTH(H58),db_customer!$A$18:$B$29,2,FALSE),"") -> November | J58: 2017 | N58: -763690 | O58: -76369 | P58: -840059
A59: 12 | B59: Jaksel | C59: 600190 | D59: PT CDE | E59: Pembayaran | G59: 17011431 | H59: 2017-11-10 | I59: =IFERROR(VLOOKUP(MONTH(H59),db_customer!$A$18:$B$29,2,FALSE),"") -> November | J59: 2017 | N59: -295156.3 | O59: -29515.63 | P59: -324671.93
A60: 12 | B60: Jaksel | C60: 600190 | D60: PT CDE | E60: Pembayaran | G60: 17011431 | H60: 2017-11-16 | I60: =IFERROR(VLOOKUP(MONTH(H60),db_customer!$A$18:$B$29,2,FALSE),"") -> November | J60: 2017 | N60: -817568.98 | O60: -81756.898 | P60: -899325.878
A61: 12 | B61: Jakut | C61: 138111 | D61: PT HIJ | E61: Penagihan | F61: Iuran | G61: 17011008 | H61: 2017-01-13 | I61: =IFERROR(VLOOKUP(MONTH(H61),db_customer!$A$18:$B$29,2,FALSE),"") -> January | J61: 2017 | N61: 951720.05 | O61: =N61*10% -> 95172.005 | P61: =SUM(N61:O61) -> 1046892.055
A62: 12 | B62: Jakut | C62: 138111 | D62: PT HIJ | E62: Penagihan | F62: Iuran | G62: 17011064 | H62: 2017-02-14 | I62: =IFERROR(VLOOKUP(MONTH(H62),db_customer!$A$18:$B$29,2,FALSE),"") -> February | J62: 2017 | N62: 3686172.43 | O62: 368617.243 | P62: 4054789.673
A63: 12 | B63: Jakut | C63: 138111 | D63: PT HIJ | E63: Penagihan | F63: Iuran | G63: 17011125 | H63: 2017-03-13 | I63: =IFERROR(VLOOKUP(MONTH(H63),db_customer!$A$18:$B$29,2,FALSE),"") -> March | J63: 2017 | N63: 4535185.3 | O63: 453518.53 | P63: 4988703.83
A64: 12 | B64: Jakut | C64: 138111 | D64: PT HIJ | E64: Penagihan | F64: Iuran | G64: 17011169 | H64: 2017-04-12 | I64: =IFERROR(VLOOKUP(MONTH(H64),db_customer!$A$18:$B$29,2,FALSE),"") -> April | J64: 2017 | N64: 4596474.2 | O64: 459647.42 | P64: 5056121.62
A65: 12 | B65: Jakut | C65: 138111 | D65: PT HIJ | E65: Penagihan | F65: Iuran | G65: 17011209 | H65: 2017-05-12 | I65: =IFERROR(VLOOKUP(MONTH(H65),db_customer!$A$18:$B$29,2,FALSE),"") -> May | J65: 2017 | N65: 2512178.28 | O65: 251217.828 | P65: 2763396.108
A66: 12 | B66: Jakut | C66: 138111 | D66: PT HIJ | E66: Penagihan | F66: Iuran | G66: 17011253 | H66: 2017-06-12 | I66: =IFERROR(VLOOKUP(MONTH(H66),db_customer!$A$18:$B$29,2,FALSE),"") -> June | J66: =IF(H66="","",YEAR(H66)) -> 2017 | N66: 2228784.3 | O66: 222878.43 | P66: 2451662.73
A67: 12 | B67: Jakut | C67: 138111 | D67: PT HIJ | E67: Penagihan | F67: Iuran | G67: 17011306 | H67: 2017-07-19 | I67: =IFERROR(VLOOKUP(MONTH(H67),db_customer!$A$18:$B$29,2,FALSE),"") -> July | J67: 2017 | N67: 1560269 | O67: 156026.9 | P67: 1716295.9
A68: 12 | B68: Jakut | C68: 138111 | D68: PT HIJ | E68: Penagihan | F68: Iuran | G68: 17011357 | H68: 2017-08-11 | I68: =IFERROR(VLOOKUP(MONTH(H68),db_customer!$A$18:$B$29,2,FALSE),"") -> August | J68: 2017 | N68: 3226308 | O68: 322630.8 | P68: 3548938.8
A69: 12 | B69: Jakut | C69: 138111 | D69: PT HIJ | E69: Penagihan | F69: Iuran | G69: 17011406 | H69: 2017-09-12 | I69: =IFERROR(VLOOKUP(MONTH(H69),db_customer!$A$18:$B$29,2,FALSE),"") -> September | J69: 2017 | N69: 4175429 | O69: 417542.9 | P69: 4592971.9
A70: 12 | B70: Jakut | C70: 138111 | D70: PT HIJ | E70: Penagihan | F70: Iuran | G70: 17011450 | H70: 2017-10-12 | I70: =IFERROR(VLOOKUP(MONTH(H70),db_customer!$A$18:$B$29,2,FALSE),"") -> October | J70: 2017 | N70: 6507584.06 | O70: 650758.406 | P70: 7158342.466
A71: 12 | B71: Jakut | C71: 138111 | D71: PT HIJ | E71: Penagihan | F71: Iuran | G71: 17011500 | H71: 2017-11-13 | I71: =IFERROR(VLOOKUP(MONTH(H71),db_customer!$A$18:$B$29,2,FALSE),"") -> November | J71: 2017 | N71: 8738597 | O71: 873859.7 | P71: 9612456.7
A72: 12 | B72: Jatim | C72: 138113 | D72: PT KLM | E72: Penagihan | F72: Iuran | G72: 17011007 | H72: 2017-01-13 | I72: =IFERROR(VLOOKUP(MONTH(H72),db_customer!$A$18:$B$29,2,FALSE),"") -> January | J72: 2017 | N72: 4754878.52 | O72: =N72*10% -> 475487.852 | P72: =SUM(N72:O72) -> 5230366.372
A73: 12 | B73: Jatim | C73: 138113 | D73: PT KLM | E73: Penagihan | F73: Iuran | G73: 17011065 | H73: 2017-02-14 | I73: =IFERROR(VLOOKUP(MONTH(H73),db_customer!$A$18:$B$29,2,FALSE),"") -> February | J73: 2017 | N73: 3206479.66 | O73: 320647.966 | P73: 3527127.626
A74: 12 | B74: Jatim | C74: 138113 | D74: PT KLM | E74: Penagihan | F74: Iuran | G74: 17011126 | H74: 2017-03-13 | I74: =IFERROR(VLOOKUP(MONTH(H74),db_customer!$A$18:$B$29,2,FALSE),"") -> March | J74: 2017 | N74: 3741821.25 | O74: 374182.125 | P74: 4116003.375
A75: 12 | B75: Jatim | C75: 138113 | D75: PT KLM | E75: Penagihan | F75: Iuran | G75: 17011171 | H75: 2017-04-12 | I75: =IFERROR(VLOOKUP(MONTH(H75),db_customer!$A$18:$B$29,2,FALSE),"") -> April | J75: 2017 | N75: 2498604.12 | O75: 249860.412 | P75: 2748464.532
A76: 12 | B76: Jatim | C76: 138113 | D76: PT KLM | E76: Penagihan | F76: Bunga | G76: 17011210 | H76: 2017-05-12 | I76: =IFERROR(VLOOKUP(MONTH(H76),db_customer!$A$18:$B$29,2,FALSE),"") -> May | J76: 2017 | N76: 2366177.77 | O76: 236617.777 | P76: 2602795.547
A77: 12 | B77: Jatim | C77: 138113 | D77: PT KLM | E77: Penagihan | F77: Bunga | G77: 17011252 | H77: 2017-06-12 | I77: =IFERROR(VLOOKUP(MONTH(H77),db_customer!$A$18:$B$29,2,FALSE),"") -> June | J77: 2017 | N77: 5182498.45 | O77: 518249.845 | P77: 5700748.295
A78: 12 | B78: Jatim | C78: 138113 | D78: PT KLM | E78: Penagihan | F78: Bunga | G78: 17011305 | H78: 2017-07-14 | I78: =IFERROR(VLOOKUP(MONTH(H78),db_customer!$A$18:$B$29,2,FALSE),"") -> July | J78: 2017 | N78: 8695372 | O78: 869537.2 | P78: 9564909.2
A79: 12 | B79: Jatim | C79: 138113 | D79: PT KLM | E79: Penagihan | F79: Bunga | G79: 17011356 | H79: 2017-08-11 | I79: =IFERROR(VLOOKUP(MONTH(H79),db_customer!$A$18:$B$29,2,FALSE),"") -> August | J79: 2017 | N79: 7908899 | O79: 790889.9 | P79: 8699788.9
A80: 12 | B80: Jatim | C80: 138113 | D80: PT KLM | E80: Penagihan | F80: Bunga | G80: 17011407 | H80: 2017-09-12 | I80: =IFERROR(VLOOKUP(MONTH(H80),db_customer!$A$18:$B$29,2,FALSE),"") -> September | J80: 2017 | N80: 8437985 | O80: 843798.5 | P80: 9281783.5
A81: 12 | B81: Jatim | C81: 138113 | D81: PT KLM | E81: Penagihan | F81: Bunga | G81: 17011451 | H81: 2017-10-12 | I81: =IFERROR(VLOOKUP(MONTH(H81),db_customer!$A$18:$B$29,2,FALSE),"") -> October | J81: 2017 | N81: 7614923.63 | O81: 761492.363 | P81: 8376415.993
A82: 12 | B82: Jatim | C82: 138113 | D82: PT KLM | E82: Penagihan | F82: Bunga | G82: 17011501 | H82: 2017-11-13 | I82: =IFERROR(VLOOKUP(MONTH(H82),db_customer!$A$18:$B$29,2,FALSE),"") -> November | J82: 2017 | N82: 6447087 | O82: 644708.7 | P82: 7091795.7
A83: 12 | B83: Jatim | C83: 138113 | D83: PT KLM | E83: Pembayaran | G83: 17011007 | H83: 2017-01-31 | I83: =IFERROR(VLOOKUP(MONTH(H83),db_customer!$A$18:$B$29,2,FALSE),"") -> January | J83: 2017 | N83: -4754879 | O83: -475487.9 | P83: -5230366.9
A84: 12 | B84: Jatim | C84: 138113 | D84: PT KLM | E84: Pembayaran | G84: 17011065 | H84: 2017-02-28 | I84: =IFERROR(VLOOKUP(MONTH(H84),db_customer!$A$18:$B$29,2,FALSE),"") -> February | J84: 2017 | N84: -3206479.66 | O84: =N84*10% -> -320647.966 | P84: =SUM(N84:O84) -> -3527127.626
A85: 12 | B85: Jatim | C85: 138113 | D85: PT KLM | E85: Pembayaran | G85: 17011126 | H85: 2017-03-31 | I85: =IFERROR(VLOOKUP(MONTH(H85),db_customer!$A$18:$B$29,2,FALSE),"") -> March | J85: 2017 | N85: -3741821.25 | O85: -374182.125 | P85: -4116003.375
A86: 12 | B86: Jatim | C86: 138113 | D86: PT KLM | E86: Pembayaran | G86: 17011171 | H86: 2017-04-30 | I86: =IFERROR(VLOOKUP(MONTH(H86),db_customer!$A$18:$B$29,2,FALSE),"") -> April | J86: 2017 | N86: -2498604.12 | O86: -249860.412 | P86: -2748464.532
A87: 12 | B87: Jatim | C87: 138113 | D87: PT KLM | E87: Pembayaran | G87: 17011210 | H87: 2017-05-31 | I87: =IFERROR(VLOOKUP(MONTH(H87),db_customer!$A$18:$B$29,2,FALSE),"") -> May | J87: 2017 | N87: -2366177.77 | O87: -236617.777 | P87: -2602795.547
A88: 12 | B88: Jakut | C88: 138111 | D88: PT HIJ | E88: Pembayaran | G88: 17011253 | H88: 2017-06-30 | I88: =IFERROR(VLOOKUP(MONTH(H88),db_customer!$A$18:$B$29,2,FALSE),"") -> June | J88: 2017 | N88: -2228784.3 | O88: =N88*10% -> -222878.43 | P88: =SUM(N88:O88) -> -2451662.73
A89: 12 | B89: Jatim | C89: 138113 | D89: PT KLM | E89: Pembayaran | G89: 17011252 | H89: 2017-06-30 | I89: =IFERROR(VLOOKUP(MONTH(H89),db_customer!$A$18:$B$29,2,FALSE),"") -> June | J89: 2017 | N89: -4413070.349 | O89: -518249.845 | P89: -4931320.194
A90: 12 | B90: Jakut | C90: 138111 | D90: PT HIJ | E90: Pembayaran | G90: 17011306 | H90: 2017-07-31 | I90: =IFERROR(VLOOKUP(MONTH(H90),db_customer!$A$18:$B$29,2,FALSE),"") -> July | J90: 2017 | N90: -1560269 | O90: =N90*10% -> -156026.9 | P90: =SUM(N90:O90) -> -1716295.9
A91: 12 | B91: Jatim | C91: 138113 | D91: PT KLM | E91: Pembayaran | G91: 17011305 | H91: 2017-07-31 | I91: =IFERROR(VLOOKUP(MONTH(H91),db_customer!$A$18:$B$29,2,FALSE),"") -> July | J91: 2017 | N91: -7007532.33 | O91: -869537.2 | P91: -7877069.53
A92: 12 | B92: Jakut | C92: 138111 | D92: PT HIJ | E92: Pembayaran | G92: 17011357 | H92: 2017-08-31 | I92: =IFERROR(VLOOKUP(MONTH(H92),db_customer!$A$18:$B$29,2,FALSE),"") -> August | J92: 2017 | N92: -3226308 | O92: =N92*10% -> -322630.8 | P92: =SUM(N92:O92) -> -3548938.8
A93: 12 | B93: Jatim | C93: 138113 | D93: PT KLM | E93: Pembayaran | G93: 17011356 | H93: 2017-08-31 | I93: =IFERROR(VLOOKUP(MONTH(H93),db_customer!$A$18:$B$29,2,FALSE),"") -> August | J93: 2017 | N93: -7446258.225 | O93: -790889.9 | P93: -8237148.125
A94: 12 | B94: Jakut | C94: 138111 | D94: PT HIJ | E94: Pembayaran | G94: 17011406 | H94: 2017-09-30 | I94: =IFERROR(VLOOKUP(MONTH(H94),db_customer!$A$18:$B$29,2,FALSE),"") -> September | J94: 2017 | N94: -3171543.508 | O94: -417542.9 | P94: -3589086.408
A95: 12 | B95: Jatim | C95: 138113 | D95: PT KLM | E95: Pembayaran | G95: 17011407 | H95: 2017-09-30 | I95: =IFERROR(VLOOKUP(MONTH(H95),db_customer!$A$18:$B$29,2,FALSE),"") -> September | J95: 2017 | N95: -8437985 | O95: =-8437985*10% -> -843798.5 | P95: =SUM(N95:O95) -> -9281783.5
A96: 12 | B96: Jakut | C96: 138111 | D96: PT HIJ | E96: Pembayaran | G96: 17011450 | H96: 2017-10-30 | I96: =IFERROR(VLOOKUP(MONTH(H96),db_customer!$A$18:$B$29,2,FALSE),"") -> October | J96: 2017 | N96: -6507584.06 | O96: =N96*10% -> -650758.406 | P96: =SUM(N96:O96) -> -7158342.466
A97: 12 | B97: Jatim | C97: 138113 | D97: PT KLM | E97: Pembayaran | G97: 17011451 | H97: 2017-10-30 | I97: =IFERROR(VLOOKUP(MONTH(H97),db_customer!$A$18:$B$29,2,FALSE),"") -> October | J97: 2017 | N97: -7614923.63 | O97: =N97*10% -> -761492.363 | P97: =SUM(N97:O97) -> -8376415.993
A98: 12 | B98: Jatim | C98: 138113 | D98: PT KLM | E98: Pembayaran | G98: 17011252 | H98: 2017-10-30 | I98: =IFERROR(VLOOKUP(MONTH(H98),db_customer!$A$18:$B$29,2,FALSE),"") -> October | J98: =IF(H98="","",YEAR(H98)) -> 2017 | N98: -365616.7835 | P98: =SUM(N98:O98) -> -365616.7835
A99: 12 | B99: Jakut | C99: 138111 | D99: PT HIJ | E99: Pembayaran | G99: 17011008 | H99: 2017-01-31 | I99: =IFERROR(VLOOKUP(MONTH(H99),db_customer!$A$18:$B$29,2,FALSE),"") -> January | J99: 2017 | N99: -951720.05 | O99: =N99*10% -> -95172.005 | P99: =SUM(N99:O99) -> -1046892.055
A100: 12 | B100: Jakut | C100: 138111 | D100: PT HIJ | E100: Pembayaran | G100: 17011064 | H100: 2017-02-28 | I100: =IFERROR(VLOOKUP(MONTH(H100),db_customer!$A$18:$B$29,2,FALSE),"") -> February | J100: 2017 | N100: -3686172.43 | O100: -368617.243 | P100: =SUM(N100:O100) -> -4054789.673
A101: 12 | B101: Jakut | C101: 138111 | D101: PT HIJ | E101: Pembayaran | G101: 17011125 | H101: 2017-03-31 | I101: =IFERROR(VLOOKUP(MONTH(H101),db_customer!$A$18:$B$29,2,FALSE),"") -> March | J101: 2017 | N101: -4535185.3 | O101: -453518.53 | P101: -4988703.83
A102: 12 | B102: Jakut | C102: 138111 | D102: PT HIJ | E102: Pembayaran | G102: 17011169 | H102: 2017-04-30 | I102: =IFERROR(VLOOKUP(MONTH(H102),db_customer!$A$18:$B$29,2,FALSE),"") -> April | J102: 2017 | N102: -4596474.2 | O102: -459647.42 | P102: -5056121.62
A103: 12 | B103: Jakut | C103: 138111 | D103: PT HIJ | E103: Pembayaran | G103: 17011209 | H103: 2017-05-31 | I103: =IFERROR(VLOOKUP(MONTH(H103),db_customer!$A$18:$B$29,2,FALSE),"") -> May | J103: 2017 | N103: -2512178.28 | O103: -251217.828 | P103: =SUM(N103:O103) -> -2763396.108
A104: 12 | B104: Jakut | C104: 138111 | D104: PT HIJ | E104: Pembayaran | G104: 17011406 | H104: 2017-10-02 | I104: =IFERROR(VLOOKUP(MONTH(H104),db_customer!$A$18:$B$29,2,FALSE),"") -> October | J104: 2017 | N104: -1003885.492 | P104: -1003885.492
A105: 12 | B105: Bandung | C105: 1 | D105: PT ABC | E105: Penagihan | F105: Bunga | G105: 17011006 | H105: 2017-01-13 | I105: =IFERROR(VLOOKUP(MONTH(H105),db_customer!$A$18:$B$29,2,FALSE),"") -> January | J105: 2017 | N105: 504014.63 | O105: =N105*10% -> 50401.463 | P105: =SUM(N105:O105) -> 554416.093
A106: 12 | B106: Bandung | C106: 1 | D106: PT ABC | E106: Penagihan | F106: Bunga | G106: 17011091 | H106: 2017-02-17 | I106: =IFERROR(VLOOKUP(MONTH(H106),db_customer!$A$18:$B$29,2,FALSE),"") -> February | J106: 2017 | N106: 1085345.088 | O106: =N106*10% -> 108534.5088 | P106: =SUM(N106:O106) -> 1193879.597
A107: 12 | B107: Bandung | C107: 1 | D107: PT ABC | E107: Penagihan | F107: Bunga | G107: 17011127 | H107: 2017-03-13 | I107: =IFERROR(VLOOKUP(MONTH(H107),db_customer!$A$18:$B$29,2,FALSE),"") -> March | J107: 2017 | N107: 1567354.86 | O107: 156735.486 | P107: 1724090.346
A108: 12 | B108: Bandung | C108: 1 | D108: PT ABC | E108: Penagihan | F108: Bunga | G108: 17011175 | H108: 2017-04-13 | I108: =IFERROR(VLOOKUP(MONTH(H108),db_customer!$A$18:$B$29,2,FALSE),"") -> April | J108: 2017 | N108: 2905706.689 | O108: 290570.6689 | P108: 3196277.358
A109: 12 | B109: Bandung | C109: 1 | D109: PT ABC | E109: Penagihan | F109: Listrik | G109: 17011203 | H109: 2017-05-12 | I109: =IFERROR(VLOOKUP(MONTH(H109),db_customer!$A$18:$B$29,2,FALSE),"") -> May | J109: 2017 | N109: 3281024.6 | O109: 328102.46 | P109: 3609127.06
A110: 12 | B110: Bandung | C110: 1 | D110: PT ABC | E110: Penagihan | F110: Listrik | G110: 17011251 | H110: 2017-06-12 | I110: =IFERROR(VLOOKUP(MONTH(H110),db_customer!$A$18:$B$29,2,FALSE),"") -> June | J110: 2017 | N110: 2941369.11 | O110: 294136.911 | P110: 3235506.021
A111: 12 | B111: Bandung | C111: 1 | D111: PT ABC | E111: Penagihan | F111: Listrik | G111: 17011304 | H111: 2017-07-14 | I111: =IFERROR(VLOOKUP(MONTH(H111),db_customer!$A$18:$B$29,2,FALSE),"") -> July | J111: 2017 | N111: 2351154 | O111: 235115.4 | P111: 2586269.4
A112: 12 | B112: Bandung | C112: 1 | D112: PT ABC | E112: Penagihan | F112: Listrik | G112: 17011345 | H112: 2017-08-09 | I112: =IFERROR(VLOOKUP(MONTH(H112),db_customer!$A$18:$B$29,2,FALSE),"") -> August | J112: 2017 | N112: 2718132 | O112: 271813.2 | P112: 2989945.2
A113: 12 | B113: Bandung | C113: 1 | D113: PT ABC | E113: Penagihan | F113: Listrik | G113: 17011411 | H113: 2017-09-14 | I113: =IFERROR(VLOOKUP(MONTH(H113),db_customer!$A$18:$B$29,2,FALSE),"") -> September | J113: 2017 | N113: 2869189 | O113: 286918.9 | P113: 3156107.9
A114: 12 | B114: Bandung | C114: 1 | D114: PT ABC | E114: Penagihan | F114: Listrik | G114: 17011442 | H114: 2017-10-11 | I114: =IFERROR(VLOOKUP(MONTH(H114),db_customer!$A$18:$B$29,2,FALSE),"") -> October | J114: 2017 | N114: 3504361 | O114: 350436.1 | P114: 3854797.1
A115: 12 | B115: Bandung | C115: 1 | D115: PT ABC | E115: Penagihan | F115: Listrik | G115: 17011495 | H115: 2017-11-13 | I115: =IFERROR(VLOOKUP(MONTH(H115),db_customer!$A$18:$B$29,2,FALSE),"") -> November | J115: 2017 | N115: 3387941.82 | O115: 338794.182 | P115: 3726736.002
A116: 12 | B116: Bandung | C116: 1 | D116: PT ABC | E116: Pembayaran | G116: 17011006 | H116: 2017-01-31 | I116: =IFERROR(VLOOKUP(MONTH(H116),db_customer!$A$18:$B$29,2,FALSE),"") -> January | J116: 2017 | N116: -504014.63 | O116: =N116*10% -> -50401.463 | P116: =SUM(N116:O116) -> -554416.093
A117: 12 | B117: Bandung | C117: 1 | D117: PT ABC | E117: Pembayaran | G117: 17011091 | H117: 2017-02-28 | I117: =IFERROR(VLOOKUP(MONTH(H117),db_customer!$A$18:$B$29,2,FALSE),"") -> February | J117: 2017 | N117: -1085345.088 | O117: -108534.5088 | P117: =SUM(N117:O117) -> -1193879.597
A118: 12 | B118: Bandung | C118: 1 | D118: PT ABC | E118: Pembayaran | G118: 17011127 | H118: 2017-03-31 | I118: =IFERROR(VLOOKUP(MONTH(H118),db_customer!$A$18:$B$29,2,FALSE),"") -> March | J118: 2017 | N118: -1567354.86 | O118: -156735.486 | P118: -1724090.346
A119: 12 | B119: Bandung | C119: 1 | D119: PT ABC | E119: Pembayaran | G119: 17011175 | H119: 2017-04-30 | I119: =IFERROR(VLOOKUP(MONTH(H119),db_customer!$A$18:$B$29,2,FALSE),"") -> April | J119: 2017 | N119: -2905706.689 | O119: -290570.6689 | P119: -3196277.358
A120: 12 | B120: Bandung | C120: 1 | D120: PT ABC | E120: Pembayaran | G120: 17011203 | H120: 2017-05-31 | I120: =IFERROR(VLOOKUP(MONTH(H120),db_customer!$A$18:$B$29,2,FALSE),"") -> May | J120: 2017 | N120: -3281024.6 | O120: -328102.46 | P120: -3609127.06
A121: 12 | B121: Bandung | C121: 1 | D121: PT ABC | E121: Pembayaran | G121: 17011251 | H121: 2017-06-30 | I121: =IFERROR(VLOOKUP(MONTH(H121),db_customer!$A$18:$B$29,2,FALSE),"") -> June | J121: 2017 | N121: -2941369.11 | O121: -294136.911 | P121: -3235506.021
A122: 12 | B122: Bandung | C122: 1 | D122: PT ABC | E122: Pembayaran | G122: 17011304 | H122: 2017-07-31 | I122: =IFERROR(VLOOKUP(MONTH(H122),db_customer!$A$18:$B$29,2,FALSE),"") -> July | J122: 2017 | N122: -2351154 | O122: -235115.4 | P122: -2586269.4
A123: 12 | B123: Bandung | C123: 1 | D123: PT ABC | E123: Pembayaran | G123: 17011345 | H123: 2017-08-30 | I123: =IFERROR(VLOOKUP(MONTH(H123),db_customer!$A$18:$B$29,2,FALSE),"") -> August | J123: 2017 | N123: -2718132 | O123: -271813.2 | P123: -2989945.2
A124: 12 | B124: Bandung | C124: 1 | D124: PT ABC | E124: Pembayaran | G124: 17011411 | H124: 2017-09-29 | I124: =IFERROR(VLOOKUP(MONTH(H124),db_customer!$A$18:$B$29,2,FALSE),"") -> September | J124: 2017 | N124: -2869189 | O124: -286918.9 | P124: -3156107.9
A125: 12 | B125: Bandung | C125: 1 | D125: PT ABC | E125: Pembayaran | G125: 17011442 | H125: 2017-10-31 | I125: =IFERROR(VLOOKUP(MONTH(H125),db_customer!$A$18:$B$29,2,FALSE),"") -> October | J125: 2017 | N125: -3504361 | O125: -350436.1 | P125: -3854797.1
A126: 12 | B126: Jatim | C126: 138113 | D126: PT KLM | E126: Pembayaran | G126: 17011252 | H126: 2017-11-30 | I126: =IFERROR(VLOOKUP(MONTH(H126),db_customer!$A$18:$B$29,2,FALSE),"") -> November | J126: 2017 | N126: -403811.32 | P126: -403811.32
A127: 12 | B127: Jatim | C127: 138113 | D127: PT KLM | E127: Pembayaran | G127: 17011501 | H127: 2017-11-30 | I127: =IFERROR(VLOOKUP(MONTH(H127),db_customer!$A$18:$B$29,2,FALSE),"") -> November | J127: =IF(H127="","",YEAR(H127)) -> 2017 | N127: -6447087 | O127: =N127*10% -> -644708.7 | P127: -7091795.7
A128: 12 | B128: Jatim | C128: 138113 | D128: PT KLM | E128: Pembayaran | G128: 17011305 | H128: 2017-11-30 | I128: =IFERROR(VLOOKUP(MONTH(H128),db_customer!$A$18:$B$29,2,FALSE),"") -> November | J128: =IF(H128="","",YEAR(H128)) -> 2017 | N128: -425828.61 | P128: -425828.61
A129: 12 | B129: Jakut | C129: 138111 | D129: PT HIJ | E129: Pembayaran | G129: 17011500 | H129: 2017-11-30 | I129: =IFERROR(VLOOKUP(MONTH(H129),db_customer!$A$18:$B$29,2,FALSE),"") -> November | J129: =IF(H129="","",YEAR(H129)) -> 2017 | N129: -8738597 | O129: =N129*10% -> -873859.7 | P129: -9612456.7
A130: 12 | B130: Bandung | C130: 1 | D130: PT ABC | E130: Pembayaran | G130: 17011495 | H130: 2017-11-30 | I130: =IFERROR(VLOOKUP(MONTH(H130),db_customer!$A$18:$B$29,2,FALSE),"") -> November | J130: =IF(H130="","",YEAR(H130)) -> 2017 | N130: -3387941.82 | O130: =N130*10% -> -338794.182 | P130: -3726736.002

Sheet db_customer (hidden)
A3: Job No | B3: Project Name | C3: Customer No | D3: Client Name | E3: Group
A4: 515035 | B4: Hanoman West Coal Mine | C4: 600190 | D4: PT CLS | E4: CLS
A5: 515036 | B5: Wahana West Coal Mine | C5: 387573 | D5: PT WBM | E5: BAYAN
A6: 515033 | B6: CLS Plant Hire Agreement | C6: 600190 | D6: PT CLS | E6: CLS
A7: 515034 | B7: CLS Management Agreement | C7: 600190 | D7: PT CLS | E7: CLS
A8: 515030 | B8: TCI Satui Interim Works | C8: 519949 | D8: PT ARUTMIN | E8: ARUTMIN
A9: 513086 | B9: Satui Mine Project | C9: 18290 | D9: PT ARUTMIN | E9: ARUTMIN
A10: 513087 | B10: Senakin Mine Project | C10: 18290 | D10: PT ARUTMIN | E10: ARUTMIN
A11: 515001 | B11: KPC Mining Services | C11: 18307 | D11: PT KPC | E11: KPC
A12: 515021 | B12: TSA - Mining Melak | C12: 138111 | D12: PT TSA | E12: BAYAN
A13: 515023 | B13: FKP - Mining Melak | C13: 138113 | D13: PT FKP | E13: BAYAN
A14: 515038 | B14: GBU Coal Mine Project | C14: 737777 | D14: PT GBU | E14: GBU
A15: 515039 | B15: MSJ Coal Mine Project | C15: 388030 | D15: PT MSJ | E15: MSJ
A18: 1 | B18: January
A19: 2 | B19: February
A20: 3 | B20: March
A21: 4 | B21: April
A22: 5 | B22: May
A23: 6 | B23: June
A24: 7 | B24: July
A25: 8 | B25: August
A26: 9 | B26: September
A27: 10 | B27: October
A28: 11 | B28: November
A29: 12 | B29: December
